fUSD/lending_fUSD_20241207
["ID","MTS","AMOUNT","RATE_DAILY","PERIOD"]
[344519972,1733534798269,-919.32,9.589e-05,2]
[344519973,1733534798316,-597.56,9.589e-05,2]
[344519974,1733534798367,-3401.85,9.589e-05,2]
[344519975,1733534798414,-500.0,9.589e-05,2]
[344519976,1733534798459,-1496.46,9.589e-05,2]
[344519977,1733534798510,-1248.35,9.589e-05,2]
[344519978,1733534798555,-500.0,9.589e-05,2]
[344519979,1733534798600,-500.0,9.589e-05,2]
[344519980,1733534798649,-1020.37,9.589e-05,2]
[344519981,1733534798693,-500.0,9.589e-05,2]
[344519982,1733534798739,-8245.82,9.589e-05,2]
[344519983,1733534798785,-896.87,9.589e-05,2]
[344519984,1733534798832,-3333.7,9.589e-05,2]
[344519985,1733534798876,-1590.36,9.589e-05,2]
[344519986,1733534798919,-1622.98,9.589e-05,2]
[344519987,1733534798961,-2526.79,9.589e-05,2]
[344519988,1733534799005,-500.0,9.589e-05,2]
[344519989,1733534799047,-811.71,9.589e-05,2]
[344519990,1733534799357,-500.0,9.589e-05,2]
[344519991,1733534799401,-721.26,9.589e-05,2]
[344519992,1733534799454,-1000.1,9.589e-05,2]
[344519993,1733534799509,-500.0,9.589e-05,2]
[344519994,1733534799566,-1938.93,9.589e-05,2]
[344519995,1733534799614,-1317.63,9.589e-05,2]
[344519996,1733534799662,-500.0,9.589e-05,2]
[344519997,1733534799708,-500.0,9.589e-05,2]
[344519998,1733534799752,-1122.52,9.589e-05,2]
[344519999,1733534799795,-2291.48,9.589e-05,2]
[344520000,1733534799842,-563.88,9.589e-05,2]
[344520001,1733534799889,-674.26,9.589e-05,2]
[344520002,1733534799939,-2502.24,9.589e-05,2]
[344520003,1733534799991,-18015.04,9.589e-05,2]
[344520004,1733534800043,-2253.9,9.589e-05,2]
[344520005,1733534800093,-500.0,9.589e-05,2]
[344520006,1733534800138,-500.0,9.589e-05,2]
[344520007,1733534800183,-814.7,9.589e-05,2]
[344520008,1733534800230,-709.4,9.589e-05,2]
[344520009,1733534800274,-3188.34,9.589e-05,2]
[344520010,1733534800324,-5849.38,9.589e-05,2]
[344520011,1733534800369,-921.65,9.589e-05,2]
[344520012,1733534800415,-4051.34,9.589e-05,2]
[344520013,1733534800467,-1464.61,9.589e-05,2]
[344520014,1733534800520,-735.32,9.589e-05,2]
[344520015,1733534800568,-2054.61,9.589e-05,2]
[344520016,1733534800614,-502.76662975,9.589e-05,2]
[344520017,1733534800662,-6076.91,9.589e-05,2]
[344520018,1733534800708,-3069.91,9.589e-05,2]
[344520019,1733534800752,-955.64,9.589e-05,2]
[344520020,1733534800796,-500.0,9.589e-05,2]
[344520021,1733534800841,-500.0,9.589e-05,2]
[344520022,1733534800887,-500.0,9.589e-05,2]
[344520023,1733534800934,-638.22935319,9.589e-05,2]
[344520024,1733534800981,-1426.36,9.589e-05,2]
[344520025,1733534801028,-500.0,9.589e-05,2]
[344520026,1733534801074,-4936.71,9.589e-05,2]
[344520027,1733534801118,-1856.49,9.589e-05,2]
[344520028,1733534801164,-1499.61,9.589e-05,2]
[344520029,1733534801210,-1817.28,9.589e-05,2]
[344520030,1733534801264,-2235.64,9.589e-05,2]
[344520031,1733534801311,-513.77,9.589e-05,2]
[344520032,1733534801357,-1248.89,9.589e-05,2]
[344520033,1733534801402,-500.0,9.589e-05,2]
[344520034,1733534801448,-5257.03,9.589e-05,2]
[344520035,1733534801493,-500.0,9.589e-05,2]
[344520036,1733534801542,-1983.53,9.589e-05,2]
[344520037,1733534801587,-2485.82,9.589e-05,2]
[344520038,1733534801632,-430.1,9.589e-05,2]
[344520039,1733534801678,-500.0,9.589e-05,2]
[344520040,1733534801726,-7158.83,9.589e-05,2]
[344520041,1733534801779,-500.0,9.589e-05,2]
[344520042,1733534801826,-1665.73,9.589e-05,2]
[344520043,1733534801873,-1823.77,9.589e-05,2]
[344520044,1733534801919,-1783.64,9.589e-05,2]
[344520045,1733534801966,-500.0,9.589e-05,2]
[344520046,1733534802016,-180.5,9.589e-05,2]
[344520047,1733534802062,-500.0,9.589e-05,2]
[344520048,1733534802108,-500.0,9.589e-05,2]
[344520049,1733534802162,-665.68,9.589e-05,2]
[344520050,1733534802230,-2537.64,9.589e-05,2]
[344520051,1733534802302,-1392.61,9.589e-05,2]
[344520052,1733534802372,-500.0,9.589e-05,2]
[344520053,1733534802442,-731.26,9.589e-05,2]
[344520054,1733534802513,-1464.06,9.589e-05,2]
[344520055,1733534802575,-1525.33,9.589e-05,2]
[344520056,1733534802644,-500.0,9.589e-05,2]
[344520057,1733534802708,-500.0,9.589e-05,2]
[344520058,1733534802785,-500.0,9.589e-05,2]
[344520059,1733534802849,-610.96,9.589e-05,2]
[344520060,1733534802913,-1037.86,9.589e-05,2]
[344520061,1733534802978,-664.08,9.589e-05,2]
[344520062,1733534803042,-5174.44,9.589e-05,2]
[344520063,1733534803102,-500.0,9.589e-05,2]
[344520064,1733534803165,-500.0,9.589e-05,2]
[344520065,1733534803227,-2410.74,9.589e-05,2]
[344520066,1733534803290,-500.0,9.589e-05,2]
[344520067,1733534803354,-1736.23,9.589e-05,2]
[344520068,1733534803417,-500.0,9.589e-05,2]
[344520069,1733534803483,-561.02,9.589e-05,2]
[344520070,1733534803545,-500.0,9.589e-05,2]
[344520071,1733534803610,-500.0,9.589e-05,2]
[344520072,1733534803672,-500.0,9.589e-05,2]
[344520073,1733534803735,-500.0,9.589e-05,2]
[344520074,1733534803798,-1155.21,9.589e-05,2]
[344520075,1733534803860,-500.0,9.589e-05,2]
[344520076,1733534803925,-1921.14,9.589e-05,2]
[344520077,1733534803998,-1153.75,9.589e-05,2]
[344520078,1733534804069,-500.0,9.589e-05,2]
[344520079,1733534804130,-3625.92,9.589e-05,2]
[344520080,1733534804190,-500.0,9.589e-05,2]
[344520081,1733534804249,-500.0,9.589e-05,2]
[344520082,1733534804314,-500.0,9.589e-05,2]
[344520083,1733534804377,-500.0,9.589e-05,2]
[344520084,1733534804437,-500.0,9.589e-05,2]
[344520085,1733534804497,-1554.04,9.589e-05,2]
[344520086,1733534804564,-582.93,9.589e-05,2]
[344520087,1733534804625,-500.0,9.589e-05,2]
[344520088,1733534804688,-748.31,9.589e-05,2]
[344520089,1733534804757,-500.0,9.589e-05,2]
[344520090,1733534804821,-2553.78,9.589e-05,2]
[344520091,1733534804886,-500.0,9.589e-05,2]
[344520092,1733534804951,-1580.76,9.589e-05,2]
[344520094,1733534805013,-500.0,9.589e-05,2]
[344520095,1733534805074,-1671.64,9.589e-05,2]
[344520096,1733534805134,-500.0,9.589e-05,2]
[344520097,1733534805194,-500.0,9.589e-05,2]
[344520098,1733534805259,-500.0,9.589e-05,2]
[344520099,1733534805325,-968.24,9.589e-05,2]
[344520100,1733534805386,-500.0,9.589e-05,2]
[344520101,1733534805446,-2197.28,9.589e-05,2]
[344520102,1733534805508,-500.0,9.589e-05,2]
[344520103,1733534805571,-2425.6,9.589e-05,2]
[344520104,1733534805637,-1294.74,9.589e-05,2]
[344520105,1733534805700,-1171.67,9.589e-05,2]
[344520106,1733534805762,-9550.42,9.589e-05,2]
[344520107,1733534805823,-750.83,9.589e-05,2]
[344520108,1733534805889,-500.0,9.589e-05,2]
[344520109,1733534806284,-528.44,9.589e-05,2]
[344520110,1733534806335,-620.16,9.589e-05,2]
[344520111,1733534806390,-1340.29,9.589e-05,2]
[344520112,1733534806447,-500.0,9.589e-05,2]
[344520113,1733534806504,-834.71,9.589e-05,2]
[344520114,1733534806560,-953.56,9.589e-05,2]
[344520115,1733534806605,-150.0,9.589e-05,2]
[344520116,1733534806652,-30000.0,9.589e-05,2]
[344520117,1733534806699,-168.82,9.589e-05,2]
[344520118,1733534806744,-1200.0,9.6e-05,3]
[344520119,1733534806801,-474.32,9.601e-05,2]
[344520120,1733534806849,-2046.61383232,9.658e-05,2]
[344520121,1733534806897,-1500.0,9.679e-05,2]
[344520122,1733534806942,-150.0,9.684e-05,2]
[344520123,1733534806988,-1500.0,9.696e-05,2]
[344520124,1733534807034,-1500.0,9.7e-05,3]
[344520125,1733534807078,-1500.0,9.702e-05,2]
[344520126,1733534807122,-1582.11816485,9.709e-05,2]
[344520127,1733534807169,-1500.0,9.713e-05,2]
[344520128,1733534807215,-150.0,9.716e-05,2]
[344520129,1733534807260,-1500.0,9.718e-05,2]
[344520130,1733534807306,-1500.0,9.723e-05,2]
[344520131,1733534807362,-838.67,9.725e-05,2]
[344520132,1733534807410,-150.0,9.725e-05,2]
[344520133,1733534807456,-1500.0,9.731e-05,2]
[344520134,1733534807505,-150.0,9.737e-05,2]
[344520135,1733534807555,-150.0,9.738e-05,2]
[344520136,1733534807601,-150.0,9.74e-05,2]
[344520137,1733534807649,-150.0,9.74e-05,2]
[344520138,1733534807697,-1500.0,9.741e-05,2]
[344520139,1733534807745,-1500.0,9.744e-05,2]
[344520140,1733534807789,-1500.0,9.746e-05,2]
[344520141,1733534807840,-1500.0,9.746e-05,2]
[344520142,1733534807887,-150.0,9.75e-05,2]
[344520143,1733534807933,-1500.0,9.754e-05,2]
[344520144,1733534807980,-150.0,9.76e-05,2]
[344520145,1733534808034,-1500.0,9.768e-05,2]
[344520146,1733534808081,-1500.0,9.769e-05,2]
[344520147,1733534808128,-1500.0,9.77e-05,2]
[344520148,1733534808176,-1500.0,9.77e-05,2]
[344520149,1733534808225,-1500.0,9.771e-05,2]
[344520150,1733534808274,-1500.0,9.773e-05,2]
[344520151,1733534808324,-1500.0,9.773e-05,2]
[344520152,1733534808372,-1500.0,9.774e-05,2]
[344520153,1733534808420,-426.43795776,9.774e-05,2]
[344520154,1733534808467,-1500.0,9.777e-05,2]
[344520155,1733534808523,-150.0,9.78e-05,2]
[344520156,1733534808568,-1500.0,9.784e-05,2]
[344520157,1733534808614,-1011.55841837,9.786e-05,2]
[344520158,1733534808662,-1500.0,9.787e-05,2]
[344520159,1733534808707,-150.0,9.787e-05,2]
[344520160,1733534808754,-150.0,9.788e-05,2]
[344520161,1733534808802,-1500.0,9.789e-05,2]
[344520162,1733534808850,-1500.0,9.79e-05,2]
[344520163,1733534808898,-150.0,9.792e-05,2]
[344520164,1733534808950,-818.81951149,9.793e-05,2]
[344520165,1733534808997,-1500.0,9.795e-05,2]
[344520166,1733534809043,-1500.0,9.797e-05,2]
[344520167,1733534809094,-300.0,9.8e-05,3]
[344520168,1733534809140,-150.0,9.803e-05,2]
[344520169,1733534809189,-150.0,9.808e-05,2]
[344520170,1733534809243,-150.0,9.809e-05,2]
[344520171,1733534809295,-1500.0,9.814e-05,2]
[344520172,1733534809346,-1500.0,9.816e-05,2]
[344520173,1733534809393,-150.0,9.819e-05,2]
[344520174,1733534809442,-150.0,9.821e-05,2]
[344520175,1733534809497,-150.0,9.822e-05,2]
[344520176,1733534809559,-1500.0,9.828e-05,2]
[344520177,1733534809616,-150.0,9.83e-05,2]
[344520178,1733534809674,-1500.0,9.831e-05,2]
[344520179,1733534809726,-1500.0,9.835e-05,2]
[344520180,1733534809779,-1500.0,9.837e-05,2]
[344520181,1733534809829,-1500.0,9.839e-05,2]
[344520182,1733534809878,-1500.0,9.841e-05,2]
[344520183,1733534809924,-1500.0,9.849e-05,2]
[344520184,1733534809969,-1500.0,9.85e-05,2]
[344520185,1733534810019,-150.0,9.856e-05,2]
[344520186,1733534810068,-838.67,9.862e-05,2]
[344520187,1733534810112,-945.21,9.863e-05,2]
[344520188,1733534810159,-500.0,9.863e-05,2]
[344520189,1733534810206,-500.0,9.863e-05,2]
[344520190,1733534810267,-500.0,9.863e-05,2]
[344520191,1733534810315,-500.0,9.863e-05,2]
[344520192,1733534810363,-1163.74,9.863e-05,2]
[344520193,1733534810409,-853.57,9.863e-05,2]
[344520194,1733534810457,-1245.22,9.863e-05,2]
[344520195,1733534810505,-2197.04,9.863e-05,2]
[344520196,1733534810562,-500.0,9.863e-05,2]
[344520197,1733534810616,-1670.09,9.863e-05,2]
[344520198,1733534810662,-725.38,9.863e-05,2]
[344520199,1733534810709,-1704.98,9.863e-05,2]
[344520200,1733534810759,-500.0,9.863e-05,2]
[344520201,1733534810817,-596.32895478,9.863e-05,2]
[344520202,1733534810864,-500.0,9.863e-05,2]
[344520203,1733534810911,-500.0,9.863e-05,2]
[344520204,1733534810957,-678.59,9.863e-05,2]
[344520205,1733534811004,-503.57,9.863e-05,2]
[344520206,1733534811052,-1132.25,9.863e-05,2]
[344520207,1733534811095,-1220.76,9.863e-05,2]
[344520208,1733534811144,-1265.94,9.863e-05,2]
[344520209,1733534811192,-500.0,9.863e-05,2]
[344520210,1733534811241,-500.0,9.863e-05,2]
[344520211,1733534811287,-752.05,9.863e-05,2]
[344520212,1733534811334,-500.0,9.863e-05,2]
[344520213,1733534811381,-2267.5,9.863e-05,2]
[344520214,1733534811427,-500.0,9.863e-05,2]
[344520215,1733534811472,-1615.99,9.863e-05,2]
[344520216,1733534811524,-500.0,9.863e-05,2]
[344520217,1733534811571,-1420.89,9.863e-05,2]
[344520218,1733534811616,-500.0,9.863e-05,2]
[344520219,1733534811661,-1426.88,9.863e-05,2]
[344520220,1733534811710,-628.29,9.863e-05,2]
[344520221,1733534811755,-2472.38,9.863e-05,2]
[344520222,1733534811801,-1911.04,9.863e-05,2]
[344520223,1733534811848,-1987.1,9.863e-05,2]
[344520224,1733534811895,-500.0,9.863e-05,2]
[344520225,1733534811943,-1972.26,9.863e-05,2]
[344520226,1733534811987,-2440.64,9.863e-05,2]
[344520227,1733534812031,-2962.07,9.863e-05,2]
[344520228,1733534812074,-1429.3,9.863e-05,2]
[344520229,1733534812118,-1689.51,9.863e-05,2]
[344520230,1733534812163,-1575.83,9.863e-05,2]
[344520231,1733534812209,-1204.31,9.863e-05,2]
[344520232,1733534812254,-1139.66,9.863e-05,2]
[344520233,1733534812302,-1037.0,9.863e-05,2]
[344520234,1733534812350,-1418.65,9.863e-05,2]
[344520235,1733534812398,-500.0,9.863e-05,2]
[344520236,1733534812445,-626.88887152,9.863e-05,2]
[344520237,1733534812505,-1875.73,9.863e-05,2]
[344520238,1733534812562,-500.0,9.863e-05,2]
[344520239,1733534812618,-500.0,9.863e-05,2]
[344520240,1733534812666,-500.0,9.863e-05,2]
[344520241,1733534812714,-500.0,9.863e-05,2]
[344520242,1733534812761,-873.76,9.863e-05,2]
[344520243,1733534812810,-588.28,9.863e-05,2]
[344520244,1733534812856,-1927.52,9.863e-05,2]
[344520245,1733534812904,-689.41,9.863e-05,2]
[344520246,1733534813185,-574.63,9.863e-05,2]
[344520247,1733534813231,-1314.25,9.863e-05,2]
[344520248,1733534813280,-500.0,9.863e-05,2]
[344520249,1733534813328,-2269.31,9.863e-05,2]
[344520250,1733534813375,-2557.35,9.863e-05,2]
[344520251,1733534813420,-1042.33,9.863e-05,2]
[344520252,1733534813464,-2288.51,9.863e-05,2]
[344520253,1733534813510,-500.0,9.863e-05,2]
[344520254,1733534813559,-1313.98,9.863e-05,2]
[344520255,1733534813606,-500.0,9.863e-05,2]
[344520256,1733534813655,-500.0,9.863e-05,2]
[344520257,1733534813702,-1579.06,9.863e-05,2]
[344520258,1733534813749,-550.45798327,9.863e-05,2]
[344520259,1733534813797,-639.49,9.863e-05,2]
[344520260,1733534813844,-1489.57,9.863e-05,2]
[344520261,1733534813894,-1973.67,9.863e-05,2]
[344520262,1733534813940,-500.0,9.863e-05,2]
[344520263,1733534813988,-1336.14,9.863e-05,2]
[344520264,1733534814034,-598.85,9.863e-05,2]
[344520265,1733534814080,-1410.28,9.863e-05,2]
[344520266,1733534814126,-500.0,9.863e-05,2]
[344520267,1733534814171,-553.41459658,9.863e-05,2]
[344520268,1733534814216,-1652.97,9.863e-05,2]
[344520269,1733534814260,-1682.55,9.863e-05,2]
[344520270,1733534814307,-2080.01,9.863e-05,2]
[344520271,1733534814356,-4172.15,9.863e-05,2]
[344520272,1733534814408,-314.81081633,9.863e-05,2]
[344520273,1733534814462,-1426.43,9.863e-05,2]
[344520274,1733534814509,-1051.53,9.863e-05,2]
[344520275,1733534814560,-1829.66,9.863e-05,2]
[344520276,1733534814607,-1496.52,9.863e-05,2]
[344520277,1733534814653,-2450.83,9.863e-05,2]
[344520278,1733534814704,-500.0,9.863e-05,2]
[344520279,1733534814750,-500.0,9.863e-05,2]
[344520280,1733534814798,-500.0,9.863e-05,2]
[344520281,1733534814846,-500.0,9.863e-05,2]
[344520282,1733534814895,-500.0,9.863e-05,2]
[344520283,1733534814944,-1067.22,9.863e-05,2]
[344520284,1733534814998,-500.0,9.863e-05,2]
[344520285,1733534815044,-3170.17,9.863e-05,2]
[344520286,1733534815090,-1635.57,9.863e-05,2]
[344520287,1733534815137,-500.0,9.863e-05,2]
[344520288,1733534815185,-2791.9,9.863e-05,2]
[344520289,1733534815232,-873.81,9.863e-05,2]
[344520290,1733534815283,-1306.08,9.863e-05,2]
[344520291,1733534815334,-500.0,9.863e-05,2]
[344520292,1733534815382,-1375.26,9.863e-05,2]
[344520293,1733534815431,-2435.51,9.863e-05,2]
[344520294,1733534815478,-515.83,9.863e-05,2]
[344520295,1733534815530,-1385.01,9.863e-05,2]
[344520296,1733534815580,-1388.39,9.863e-05,2]
[344520297,1733534815627,-500.0,9.863e-05,2]
[344520298,1733534815675,-1319.34,9.863e-05,2]
[344520299,1733534815722,-760.24,9.863e-05,2]
[344520300,1733534815772,-257.6,9.863e-05,2]
[344520301,1733534815822,-500.0,9.863e-05,2]
[344520302,1733534815870,-500.0,9.863e-05,2]
[344520303,1733534815915,-3134.44,9.863e-05,2]
[344520304,1733534815960,-500.0,9.863e-05,2]
[344520305,1733534816007,-1212.53,9.863e-05,2]
[344520306,1733534816055,-1534.55,9.863e-05,2]
[344520307,1733534816100,-1019.07,9.863e-05,2]
[344520308,1733534816146,-500.0,9.863e-05,2]
[344520309,1733534816192,-1771.79,9.863e-05,2]
[344520310,1733534816240,-875.16,9.863e-05,2]
[344520311,1733534816288,-652.19,9.863e-05,2]
[344520312,1733534816338,-500.0,9.863e-05,2]
[344520313,1733534816383,-500.0,9.863e-05,2]
[344520314,1733534816429,-507.77,9.863e-05,2]
[344520315,1733534816474,-1672.05,9.863e-05,2]
[344520316,1733534816527,-743.9,9.863e-05,2]
[344520317,1733534816573,-500.0,9.863e-05,2]
[344520318,1733534816620,-1293.57,9.863e-05,2]
[344520319,1733534816667,-1615.18,9.863e-05,2]
[344520320,1733534816715,-2090.14,9.863e-05,2]
[344520321,1733534816760,-500.0,9.863e-05,2]
[344520322,1733534816808,-204.26199218,9.863e-05,2]
[344520323,1733534816857,-582.08,9.863e-05,2]
[344520324,1733534816904,-500.0,9.863e-05,2]
[344520325,1733534816952,-727.15,9.863e-05,2]
[344520326,1733534816998,-778.61,9.863e-05,2]
[344520327,1733534817044,-2314.43,9.863e-05,2]
[344520328,1733534817092,-500.0,9.863e-05,2]
[344520329,1733534817138,-1013.27,9.863e-05,2]
[344520330,1733534817186,-985.91,9.863e-05,2]
[344520331,1733534817233,-500.0,9.863e-05,2]
[344520332,1733534817281,-500.0,9.863e-05,2]
[344520333,1733534817333,-1171.43,9.863e-05,2]
[344520334,1733534817379,-1416.71,9.863e-05,2]
[344520335,1733534817423,-500.0,9.863e-05,2]
[344520336,1733534817467,-1631.71,9.863e-05,2]
[344520337,1733534817521,-500.0,9.863e-05,2]
[344520338,1733534817566,-500.0,9.863e-05,2]
[344520339,1733534817613,-592.6,9.863e-05,2]
[344520340,1733534817673,-500.0,9.863e-05,2]
[344520341,1733534817725,-500.0,9.863e-05,2]
[344520342,1733534817921,-1758.52,9.863e-05,2]
[344520343,1733534817968,-500.0,9.863e-05,2]
[344520344,1733534818017,-484.88365236,9.863e-05,2]
[344520345,1733534818063,-1009.89,9.863e-05,2]
[344520346,1733534818110,-500.0,9.863e-05,2]
[344520347,1733534818156,-500.0,9.863e-05,2]
[344520348,1733534818202,-500.0,9.863e-05,2]
[344520349,1733534818250,-500.0,9.863e-05,2]
[344520350,1733534818298,-1854.79,9.863e-05,2]
[344520351,1733534818346,-519.53,9.863e-05,2]
[344520352,1733534818401,-1350.63,9.863e-05,2]
[344520353,1733534818448,-500.0,9.863e-05,2]
[344520354,1733534818500,-2970.04,9.863e-05,2]
[344520355,1733534818548,-500.0,9.863e-05,2]
[344520356,1733534818599,-942.17,9.863e-05,2]
[344520357,1733534818643,-718.37,9.863e-05,2]
[344520358,1733534818687,-500.0,9.863e-05,2]
[344520359,1733534818733,-1297.4,9.863e-05,2]
[344520360,1733534818787,-1656.99,9.863e-05,2]
[344520361,1733534818835,-500.0,9.863e-05,2]
[344520362,1733534818882,-500.0,9.863e-05,2]
[344520363,1733534818930,-1113.06,9.863e-05,2]
[344520364,1733534818980,-708.83,9.863e-05,2]
[344520365,1733534819029,-1661.87,9.863e-05,2]
[344520366,1733534819076,-2136.73,9.863e-05,2]
[344520367,1733534819123,-500.0,9.863e-05,2]
[344520368,1733534819175,-372.29309938,9.863e-05,2]
[344520369,1733534819222,-500.0,9.863e-05,2]
[344520370,1733534819275,-1135.85,9.863e-05,2]
[344520371,1733534819335,-1634.73,9.863e-05,2]
[344520372,1733534819385,-560.78,9.863e-05,2]
[344520373,1733534819434,-1287.33,9.863e-05,2]
[344520374,1733534819485,-500.0,9.863e-05,2]
[344520375,1733534819546,-500.0,9.863e-05,2]
[344520376,1733534819598,-500.0,9.863e-05,2]
[344520377,1733534819647,-1461.49,9.863e-05,2]
[344520378,1733534819695,-500.0,9.863e-05,2]
[344520379,1733534819749,-500.0,9.863e-05,2]
[344520380,1733534819800,-1188.56,9.863e-05,2]
[344520381,1733534819847,-2040.68,9.863e-05,2]
[344520382,1733534819895,-1879.78,9.863e-05,2]
[344520383,1733534819945,-645.12,9.863e-05,2]
[344520384,1733534819995,-2728.89,9.863e-05,2]
[344520385,1733534820046,-500.0,9.863e-05,2]
[344520386,1733534820096,-703.19,9.863e-05,2]
[344520387,1733534820145,-500.0,9.863e-05,2]
[344520388,1733534820200,-2684.93,9.863e-05,2]
[344520389,1733534820252,-172.21,9.863e-05,2]
[344520390,1733534820305,-500.0,9.863e-05,2]
[344520391,1733534820361,-1954.72,9.863e-05,2]
[344520392,1733534820412,-539.9,9.863e-05,2]
[344520393,1733534820462,-1653.8,9.863e-05,2]
[344520394,1733534820510,-1722.05,9.863e-05,2]
[344520395,1733534820563,-374.66609738,9.863e-05,2]
[344520396,1733534820615,-500.0,9.863e-05,2]
[344520397,1733534820665,-876.53,9.863e-05,2]
[344520398,1733534820712,-500.0,9.863e-05,2]
[344520399,1733534820760,-1772.88,9.863e-05,2]
[344520400,1733534820809,-4449.13,9.863e-05,2]
[344520401,1733534820854,-565.91,9.863e-05,2]
[344520402,1733534820900,-243.8757647,9.863e-05,2]
[344520403,1733534820947,-1320.54,9.863e-05,2]
[344520404,1733534821004,-500.0,9.863e-05,2]
[344520405,1733534821052,-1231.65,9.863e-05,2]
[344520406,1733534821098,-500.0,9.863e-05,2]
[344520407,1733534821148,-533.78,9.863e-05,2]
[344520408,1733534821195,-500.0,9.863e-05,2]
[344520409,1733534821240,-1008.44,9.863e-05,2]
[344520410,1733534821287,-1454.47,9.863e-05,2]
[344520411,1733534821344,-1258.35,9.863e-05,2]
[344520412,1733534821394,-15055.87,9.863e-05,2]
[344520413,1733534821441,-161.97048616,9.863e-05,2]
[344520414,1733534821488,-150.0,9.863e-05,2]
[344520415,1733534821537,-500.0,9.863e-05,2]
[344520416,1733534821581,-150.0,9.863e-05,2]
[344520417,1733534821628,-500.0,9.863e-05,2]
[344520418,1733534821673,-707.95,9.863e-05,2]
[344520419,1733534821722,-500.0,9.863e-05,2]
[344520420,1733534821768,-6860.44,9.863e-05,2]
[344520421,1733534821819,-1151.79,9.863e-05,2]
[344520422,1733534821869,-2462.88,9.863e-05,2]
[344520423,1733534821916,-1485.49,9.863e-05,2]
[344520424,1733534821965,-150.0,9.863e-05,2]
[344520425,1733534822017,-10327.5,9.863e-05,2]
[344520426,1733534822074,-150.0,9.863e-05,2]
[344520427,1733534822124,-6073.25,9.863e-05,2]
[344520428,1733534822178,-500.0,9.863e-05,2]
[344520429,1733534822225,-4445.85,9.863e-05,2]
[344520430,1733534822273,-500.0,9.863e-05,2]
[344520431,1733534822322,-150.0,9.863e-05,2]
[344520432,1733534822369,-1610.0,9.863e-05,2]
[344520433,1733534822417,-878.28,9.863e-05,2]
[344520434,1733534822466,-791.73,9.863e-05,2]
[344520435,1733534822514,-2450.46,9.863e-05,2]
[344520436,1733534822562,-1026.86,9.863e-05,2]
[344520437,1733534822609,-500.0,9.863e-05,2]
[344520438,1733534822660,-1408.03,9.863e-05,2]
[344520439,1733534822709,-500.0,9.863e-05,2]
[344520440,1733534822754,-1992.9,9.863e-05,2]
[344520441,1733534822804,-1184.68,9.863e-05,2]
[344520442,1733534822851,-555.08,9.863e-05,2]
[344520443,1733534822900,-500.0,9.863e-05,2]
[344520444,1733534822947,-1524.13,9.863e-05,2]
[344520445,1733534822996,-676.95,9.863e-05,2]
[344520446,1733534823045,-2762.76,9.863e-05,2]
[344520447,1733534823094,-1555.56,9.863e-05,2]
[344520448,1733534823146,-2989.31,9.863e-05,2]
[344520449,1733534823204,-696.35,9.863e-05,2]
[344520450,1733534823255,-781.7,9.863e-05,2]
[344520451,1733534823309,-500.0,9.863e-05,2]
[344520452,1733534823362,-1512.78,9.863e-05,2]
[344520453,1733534823416,-500.0,9.863e-05,2]
[344520454,1733534823470,-4641.13,9.863e-05,2]
[344520455,1733534823523,-598.68856832,9.863e-05,2]
[344520456,1733534823572,-3892.95,9.863e-05,2]
[344520457,1733534823625,-500.0,9.863e-05,2]
[344520458,1733534823678,-500.0,9.863e-05,2]
[344520459,1733534823731,-568.38,9.863e-05,2]
[344520460,1733534823791,-10751.97,9.863e-05,2]
[344520461,1733534823842,-500.0,9.863e-05,2]
[344520462,1733534823897,-746.04,9.863e-05,2]
[344520463,1733534823947,-540.99130703,9.863e-05,2]
[344520464,1733534824000,-716.15,9.863e-05,2]
[344520465,1733534824051,-500.0,9.863e-05,2]
[344520466,1733534824099,-500.0,9.863e-05,2]
[344520467,1733534824148,-500.0,9.863e-05,2]
[344520468,1733534824198,-500.0,9.863e-05,2]
[344520469,1733534824250,-2290.7,9.863e-05,2]
[344520470,1733534824300,-836.8,9.863e-05,2]
[344520471,1733534824351,-6840.25,9.863e-05,2]
[344520472,1733534824402,-500.0,9.863e-05,2]